bitfinex/quotes_SOLUSD_20251127
["timestamp","ask_amount","ask_price","bid_price","bid_amount"]
[1764212853971,25.77880892,143.54,143.53,4.89125092]
[1764212855494,16.968864,143.54,143.53,4.89125092]
[1764212855800,16.968864,143.54,143.53,11.85843548]
[1764212856297,16.308864,143.54,143.53,11.85843548]
[1764212857285,16.968864,143.54,143.53,4.89125092]
[1764212858991,105.3,143.58,143.53,11.85843548]
[1764212859193,16.968864,143.56,143.53,6.96718456]
[1764212859395,25.77880892,143.56,143.55,4.89125092]
[1764212859598,25.11880892,143.56,143.55,4.89125092]
[1764212859800,25.11880892,143.56,143.53,6.96718456]
[1764212859801,25.11880892,143.56,143.54,4.89125092]
[1764212860101,0.71,143.55,143.54,4.89125092]
[1764212861915,0.71,143.55,143.52,6.96763398]
[1764212862076,0.71,143.55,143.54,4.89125092]
[1764212862276,25.11880892,143.56,143.54,4.89125092]
[1764212862493,0.71,143.55,143.54,4.89125092]
[1764212862694,16.308864,143.56,143.54,5.60125092]
[1764212862873,16.308864,143.56,143.55,11.85746478]
[1764212863188,17.018864,143.56,143.55,11.85746478]
[1764212863573,8.80994492,143.59,143.55,12.56746478]
[1764212863780,0.1,143.6,143.58,4.89125092]
[1764212864087,0.1,143.6,143.59,4.89125092]
[1764212864597,0.1,143.6,143.59,2.53571706]
[1764212865108,0.1,143.6,143.59,12.59999033]
[1764212866198,0.1,143.6,143.59,11.88999033]
[1764212866602,0.1,143.6,143.59,12.59999033]
[1764212866984,0.81,143.6,143.59,3.1]
[1764212867303,0.1,143.6,143.59,1.82571706]
[1764212867478,0.81,143.6,143.59,1.82571706]
[1764212867784,0.81,143.6,143.58,1.82571706]
[1764212868682,8.80994492,143.59,143.53,18.12772398]
[1764212868989,8.80994492,143.59,143.55,2.85418016]
[1764212869187,0.71,143.58,143.54,9.82087933]
[1764212870000,0.71,143.58,143.55,2.85418016]
[1764212870692,0.71,143.58,143.54,6.96669917]
[1764212870897,0.71,143.58,143.55,7.57578341]
[1764212871686,0.71,143.58,143.54,6.96669917]
[1764212871883,0.71,143.58,143.54,14.54248258]
[1764212872083,8.80994492,143.57,143.53,7.57578341]
[1764212872313,32.69459233,143.57,143.51,10.67578341]
[1764212872486,0.71,143.56,143.51,10.67578341]
[1764212873186,0.71,143.56,143.51,3.1]
[1764212873388,8.28578341,143.56,143.51,10.67578341]
[1764212873789,0.71,143.55,143.52,6.96767001]
[1764212876112,0.71,143.55,143.51,17.64382824]
[1764212876492,0.71,143.55,143.5,7.57578341]
[1764212876493,25.11880892,143.54,143.5,7.57578341]
[1764212876910,0.71,143.53,143.5,7.57578341]
[1764212877710,0.71,143.53,143.51,7.57578341]
[1764212877891,0.71,143.53,143.51,14.5438241]
[1764212878212,25.82880892,143.54,143.51,14.5438241]
[1764212879611,17.018864,143.54,143.52,7.57578341]
[1764212879914,17.018864,143.54,143.51,15.2538241]
[1764212880216,0.71,143.53,143.5,14.54430381]
[1764212880712,0.71,143.53,143.5,15.25430381]
[1764212880885,0.71,143.53,143.49,6.96904842]
[1764212881099,8.28578341,143.53,143.48,3.1]
[1764212881493,0.71,143.52,143.48,10.06953964]
[1764212881701,0.71,143.52,143.48,6.96953964]
[1764212882719,15.25360366,143.52,143.48,6.96953964]
[1764212883111,0.71,143.51,143.47,10.06996759]
[1764212883413,0.71,143.51,143.47,17.645751]
[1764212883590,0.71,143.51,143.47,14.545751]
[1764212883911,0.71,143.51,143.47,6.96996759]
[1764212886018,0.71,143.51,143.47,14.545751]
[1764212886414,0.71,143.51,143.47,15.255751]
[1764212886722,8.80994492,143.52,143.49,7.57578341]
[1764212886896,9.51994492,143.52,143.49,10.67578341]
[1764212887214,0.81,143.6,143.51,98.88464741]
[1764212887417,0.1,143.6,143.59,7.57578341]
[1764212887720,0.1,143.6,143.59,14.54005668]
[1764212888714,0.2,143.65,143.59,40.22652328]
[1764212888922,0.92,143.65,143.64,7.57578341]
[1764212889815,8.80994492,143.64,143.62,7.57578341]
[1764212890006,9.48994492,143.64,143.62,7.57578341]
[1764212890195,0.68,143.63,143.62,7.57578341]
[1764212890604,0.68,143.63,143.58,10.73475832]
[1764212890904,0.68,143.63,143.62,7.57578341]
[1764212894003,8.80994492,143.64,143.62,7.57578341]
[1764212894306,9.48994492,143.64,143.63,7.57578341]
[1764212897426,0.2,143.65,143.63,15.20811718]
[1764212897618,0.2,143.65,143.64,8.24578341]
[1764212898417,0.2,143.65,143.64,15.20763247]
[1764212898928,0.2,143.65,143.64,18.30763247]
[1764212905941,0.2,143.65,143.64,17.63763247]
[1764212908435,0.2,143.65,143.64,14.53763247]
[1764212909026,0.2,143.65,143.64,15.20763247]
[1764212910539,0.2,143.65,143.64,13.33277548]
[1764212910838,0.2,143.65,143.64,6.96184906]
[1764212911039,0.2,143.65,143.64,12.66277548]
[1764212911340,0.2,143.65,143.64,13.33277548]
[1764212915045,0.1,143.71,143.64,30.73739814]
[1764212915245,0.1,143.71,143.65,3.75]
[1764212915547,0.1,143.71,143.7,2.85046321]
[1764212915939,0.78,143.71,143.7,2.85046321]
[1764212916518,0.1,143.71,143.7,2.85046321]
[1764212916929,0.1,143.71,143.7,9.80940545]
[1764212917233,0.1,143.71,143.7,13.32986866]
[1764212917635,0.1,143.71,143.7,10.47940545]
[1764212917839,0.78,143.71,143.7,2.85046321]
[1764212918037,0.78,143.71,143.69,2.85046321]
[1764212918349,0.78,143.71,143.7,2.85046321]
[1764212919451,0.78,143.71,143.69,2.85046321]
[1764212919642,0.78,143.71,143.7,2.85046321]
[1764212920339,3.86,143.71,143.7,2.85046321]
[1764212922387,3.86,143.71,143.69,2.85046321]
[1764212922535,0.72,143.7,143.67,9.81071555]
[1764212922848,0.72,143.7,143.67,2.85046321]
[1764212923650,0.72,143.7,143.66,9.81131753]
[1764212926045,0.72,143.7,143.67,2.85046321]
[1764212927653,3.08,143.69,143.67,9.81082516]
[1764212927978,3.08,143.69,143.67,6.96036195]
[1764212928138,3.8,143.69,143.66,9.81126397]
[1764212928640,3.8,143.69,143.66,8.7852672]
[1764212928832,0.1,143.71,143.68,19.95779688]
[1764212929033,0.1,143.71,143.7,8.78340868]
[1764212929643,0.82,143.71,143.7,1.82446644]
[1764212930166,0.1,143.71,143.7,1.82446644]
[1764212931031,0.1,143.71,143.7,8.78340868]
[1764212931452,0.1,143.73,143.7,31.08523072]
[1764212931643,0.1,143.73,143.72,1.82446644]
[1764212933262,0.1,143.73,143.72,8.78244027]
[1764212934544,0.1,143.73,143.72,6.95797383]
[1764212934736,0.1,143.73,143.72,8.78244027]
[1764212935840,0.82,143.73,143.72,6.95797383]
[1764212936131,0.82,143.73,143.71,1.82446644]
[1764212936736,0.82,143.73,143.7,11.86294158]
[1764212936964,0.82,143.73,143.7,6.95847514]
[1764212937269,0.82,143.73,143.7,8.78294158]
[1764212938361,0.82,143.73,143.71,1.82446644]
[1764212941054,0.82,143.73,143.72,1.82446644]
[1764212941239,0.82,143.73,143.71,1.82446644]
[1764212941556,0.1,143.73,143.72,4.90446644]
[1764212943768,0.1,143.73,143.72,11.86244027]
[1764212943958,0.1,143.73,143.72,86.86244027]
[1764212944145,0.82,143.73,143.65,146.84716672]
[1764212944348,0.82,143.73,143.66,18.85082477]
[1764212944547,0.82,143.73,143.71,1.82446644]
[1764212946156,0.82,143.73,143.7,6.95894224]
[1764212946355,0.82,143.73,143.7,8.78340868]
[1764212947757,0.82,143.73,143.68,1.82446644]
[1764212947959,0.82,143.73,143.67,1.82446644]
[1764212948547,0.82,143.73,143.68,1.82446644]
[1764212949159,0.82,143.73,143.69,1.82446644]
[1764212949761,0.82,143.73,143.7,1.82446644]
[1764212950263,0.82,143.73,143.69,1.82446644]
[1764212950449,0.82,143.73,143.68,1.82446644]
[1764212952056,0.82,143.73,143.69,6.95942654]
[1764212952470,0.82,143.73,143.7,1.82446644]
[1764212952856,0.82,143.73,143.69,8.78389298]
[1764212953267,7.77755565,143.73,143.69,8.78389298]
[1764212953472,7.77755565,143.73,143.69,6.95942654]
[1764212953649,0.69,143.72,143.68,8.78432647]
[1764212953847,0.69,143.72,143.67,8.78484475]
[1764212953848,23.95706989,143.72,143.67,8.78484475]
[1764212954050,16.308864,143.71,143.67,6.96037831]
[1764212954253,16.998864,143.71,143.67,6.96037831]
[1764212954462,0.69,143.7,143.67,6.96037831]
[1764212954969,0.69,143.7,143.67,8.78484475]
[1764212957465,0.69,143.7,143.68,1.82446644]
[1764212957872,0.69,143.7,143.67,6.96037831]
[1764212960259,0.69,143.7,143.66,10.04073778]
[1764212960475,4.90446644,143.69,143.63,6.96233377]
[1764212960774,8.80994492,143.68,143.63,6.96233377]
[1764212960981,9.49994492,143.68,143.63,6.96233377]
[1764212961184,0.69,143.67,143.63,6.96233377]
[1764212962270,9.474888,143.67,143.62,6.9627369]
[1764212962469,4.90446644,143.66,143.61,3.08]
[1764212962677,3.77,143.66,143.61,11.86762045]
[1764212962975,0.69,143.65,143.61,27.45141248]
[1764212963356,10.63441136,143.63,143.52,109.83648651]
[1764212963554,16.308864,143.64,143.59,1.82446644]
[1764212963779,16.308864,143.64,143.6,1.82446644]
[1764212963968,16.308864,143.64,143.61,6.96330339]
[1764212963969,0.69,143.63,143.61,6.96330339]
[1764212964170,0.69,143.63,143.6,6.96364794]
[1764212966574,0.69,143.63,143.6,8.78811438]
[1764212966767,0.69,143.63,143.6,26.19758513]
[1764212967397,0.69,143.64,143.6,26.19758513]
[1764212967680,0.69,143.63,143.6,26.19758513]
[1764212968673,25.40313206,143.66,143.6,26.19758513]
[1764212968674,0.69,143.65,143.62,1.82446644]
[1764212968880,0.69,143.65,143.6,24.37311869]
[1764212969060,0.69,143.65,143.61,1.82446644]
[1764212969558,0.69,143.65,143.62,1.82446644]
[1764212969757,0.69,143.65,143.61,1.82446644]
[1764212969978,0.69,143.65,143.62,1.82446644]
[1764212970475,0.69,143.65,143.63,6.96233377]
[1764212974582,0.69,143.65,143.61,19.23181894]
[1764212975387,0.69,143.71,143.64,1.82446644]
[1764212975682,0.1,143.73,143.7,1.82446644]
[1764212976276,3.77,143.72,143.7,1.82446644]
[1764212976476,0.69,143.71,143.7,1.82446644]
[1764212977279,0.69,143.71,143.7,8.78340868]
[1764212978386,3.77,143.71,143.7,8.78340868]
[1764212979986,3.08,143.71,143.7,8.78340868]
[1764212980785,3.8,143.71,143.66,24.36190621]
[1764212981100,3.8,143.71,143.7,1.82446644]
[1764212981101,3.08,143.71,143.7,1.82446644]
[1764212981695,3.08,143.71,143.7,8.78334532]
[1764212982094,3.8,143.71,143.7,6.95887888]
[1764212982301,3.8,143.71,143.7,8.78334532]
[1764212983300,3.8,143.71,143.67,17.40007899]
[1764212983483,3.08,143.71,143.7,1.82446644]
[1764212983982,0.72,143.71,143.7,1.82446644]
[1764212984185,3.8,143.71,143.7,1.82446644]
[1764212986095,0.72,143.71,143.7,8.78340868]
[1764212986298,3.8,143.71,143.7,8.78340868]
[1764212986988,3.8,143.71,143.7,1.82446644]
[1764212987422,27.06732752,143.71,143.67,1.82446644]
[1764212987579,0.72,143.7,143.67,1.82446644]
[1764212989102,0.72,143.7,143.68,1.82446644]
[1764212989477,0.72,143.7,143.67,1.82446644]
[1764212990701,0.72,143.7,143.67,2.85029658]
[1764212991202,0.72,143.7,143.67,9.81053749]
[1764212991906,0.72,143.7,143.67,2.85029658]
[1764212992103,25.11880892,143.69,143.65,2.85029658]
[1764212992406,3.08,143.68,143.65,2.85029658]
[1764212992601,3.8,143.68,143.65,2.85029658]
[1764212992786,0.72,143.67,143.65,2.85029658]
[1764212993596,0.72,143.67,143.65,9.81163289]
[1764212996197,0.72,143.67,143.66,2.85029658]
[1764212996613,0.72,143.67,143.63,9.81228468]
[1764212997822,0.72,143.67,143.64,2.85029658]
[1764212998711,0.72,143.67,143.63,6.9619881]
[1764212998910,8.80994492,143.63,143.59,2.85029658]
[1764212999100,3.08,143.62,143.58,2.85029658]
[1764212999306,3.8,143.62,143.59,2.85029658]
[1764212999623,3.8,143.62,143.6,2.85029658]
[1764212999624,0.72,143.61,143.6,2.85029658]
[1764212999808,0.72,143.61,143.59,2.85029658]
[1764213000009,17.028864,143.64,143.6,2.85029658]
[1764213000206,3.08,143.63,143.6,2.85029658]
[1764213000418,16.308864,143.62,143.59,2.85029658]
[1764213000619,17.028864,143.62,143.58,2.85029658]
[1764213000821,0.72,143.61,143.59,2.85029658]
[1764213001007,3.08,143.6,143.59,9.81456985]
[1764213001326,3.08,143.6,143.56,17.41320617]
[1764213001327,3.08,143.6,143.56,2.85029658]
[1764213001502,0.72,143.59,143.57,2.85029658]
[1764213001704,0.72,143.59,143.53,3.28]
[1764213001900,0.72,143.59,143.57,2.85029658]
[1764213002309,0.72,143.59,143.53,0.2]
[1764213002509,0.72,143.59,143.53,7.16698752]
[1764213002711,3.08,143.58,143.53,24.58494892]
[1764213003125,3.8,143.58,143.53,24.58494892]
[1764213003540,3.08,143.58,143.53,24.58494892]
[1764213003850,0.72,143.57,143.56,2.85029658]
[1764213004834,3.8,143.58,143.56,9.81602519]
[1764213005925,0.72,143.57,143.56,9.81602519]
[1764213007244,0.72,143.57,143.56,6.96572861]
[1764213007538,0.72,143.57,143.56,9.81602519]
[1764213007707,111.72994492,143.61,143.56,9.81602519]
[1764213007914,3.77,143.6,143.57,2.85029658]
[1764213008109,3.77,143.6,143.56,6.96572861]
[1764213008311,0.69,143.59,143.57,2.85029658]
[1764213008810,0.69,143.59,143.57,9.81537386]
[1764213009346,0.69,143.59,143.57,6.96507728]
[1764213009549,3.08,143.6,143.58,2.85029658]
[1764213009845,0.68,143.59,143.58,2.85029658]
[1764213010417,0.68,143.59,143.57,2.85029658]
[1764213010844,0.68,143.59,143.57,9.81537842]
[1764213011135,0.68,143.59,143.58,2.85029658]
[1764213011629,0.68,143.59,143.57,9.81537842]
[1764213012219,0.68,143.59,143.55,2.85029658]
[1764213012720,0.68,143.59,143.56,2.85029658]
[1764213014017,0.68,143.59,143.56,9.81573812]
[1764213016540,0.68,143.59,143.56,6.96544154]
[1764213016719,3.08,143.58,143.57,2.85029658]
[1764213018138,3.76,143.58,143.57,6.96524343]
[1764213018437,109.16342566,143.61,143.57,6.96524343]
[1764213018438,0.68,143.59,143.57,6.96524343]
[1764213018623,3.08,143.58,143.57,9.81554001]
[1764213019022,3.76,143.58,143.57,9.81554001]
[1764213020244,3.08,143.59,143.57,9.81554001]
[1764213020544,3.08,143.59,143.58,2.85029658]
[1764213021138,16.308864,143.62,143.58,2.85029658]
[1764213021332,0.68,143.59,143.58,2.85029658]
[1764213021533,0.68,143.59,143.58,9.8150549]
[1764213022242,0.68,143.59,143.58,6.96475832]
[1764213022544,3.76,143.59,143.58,6.96475832]
[1764213023034,0.68,143.59,143.58,6.96475832]
[1764213023231,3.76,143.59,143.58,6.96475832]
[1764213023428,3.76,143.59,143.57,6.96508763]
[1764213023743,0.68,143.58,143.57,9.81538421]
[1764213024123,3.76,143.59,143.57,9.81538421]
[1764213024322,0.68,143.58,143.57,9.81538421]
[1764213027464,0.68,143.58,143.54,17.41636071]
[1764213027465,0.68,143.58,143.56,2.85029658]
[1764213028245,3.08,143.59,143.57,2.85029658]
[1764213028434,0.68,143.58,143.57,2.85029658]
[1764213029852,0.68,143.58,143.55,2.85029658]
[1764213030035,102.2,143.61,143.57,2.85029658]
[1764213030036,16.308864,143.61,143.57,2.85029658]
[1764213030228,28.87880892,143.63,143.6,2.85029658]
[1764213030547,16.988864,143.63,143.61,2.85029658]
[1764213030751,3.08,143.63,143.62,2.85029658]
[1764213031046,0.68,143.67,143.62,2.85029658]
[1764213031254,0.68,143.67,143.66,2.85029658]
[1764213031448,16.988864,143.67,143.66,2.85029658]
[1764213031648,0.68,143.67,143.66,2.85029658]
[1764213031951,16.988864,143.67,143.64,2.85029658]
[1764213032343,0.68,143.66,143.63,6.96222514]
[1764213032536,0.68,143.66,143.64,2.85029658]
[1764213032954,0.68,143.66,143.65,2.85029658]
[1764213033159,3.08,143.66,143.65,2.85029658]
[1764213033340,3.76,143.66,143.65,2.85029658]
[1764213034985,16.308864,143.68,143.65,2.85029658]
[1764213035160,0.68,143.68,143.67,2.85029658]
[1764213036357,0.68,143.68,143.65,2.85029658]
[1764213036533,3.76,143.68,143.66,2.85029658]
[1764213037350,0.68,143.67,143.66,2.85029658]
[1764213037663,3.76,143.67,143.65,9.81156033]
[1764213039144,0.68,143.66,143.65,9.81156033]
[1764213040754,0.68,143.66,143.65,2.85029658]
[1764213041156,0.68,143.66,143.65,9.811661]
[1764213044667,0.68,143.66,143.65,2.85029658]
[1764213045363,0.68,143.66,143.65,9.811661]
[1764213047065,3.08,143.67,143.65,9.811661]
[1764213047242,0.67,143.66,143.65,9.811661]
[1764213047440,0.67,143.66,143.65,6.96136442]
[1764213048862,0.67,143.66,143.65,2.85029658]
[1764213050150,0.67,143.66,143.65,9.811661]
[1764213050661,0.67,143.66,143.65,6.96136442]
[1764213051944,0.67,143.66,143.65,9.811661]
[1764213052567,0.67,143.66,143.65,8.78624125]
[1764213054641,0.67,143.66,143.65,1.82487683]
[1764213054856,0.67,143.66,143.64,6.96170199]
[1764213055056,0.67,143.66,143.65,1.82487683]
[1764213055649,0.67,143.66,143.65,8.78624125]
[1764213057972,0.67,143.66,143.64,8.78656049]
[1764213058346,0.67,143.66,143.64,1.82487683]
[1764213058746,0.67,143.66,143.64,8.78656114]
[1764213059170,0.67,143.66,143.65,1.82487683]
[1764213060270,0.67,143.66,143.65,8.78614422]
[1764213060655,0.67,143.66,143.65,6.96126739]
[1764213061065,0.67,143.66,143.64,1.82487683]
[1764213061369,0.67,143.66,143.63,8.7872106]
[1764213061555,0.67,143.66,143.63,1.82487683]
[1764213061957,0.67,143.66,143.63,8.78720439]
[1764213062363,0.67,143.66,143.64,1.82487683]
[1764213063971,0.67,143.66,143.63,8.7871628]
[1764213064275,0.67,143.66,143.63,1.82487683]
[1764213064859,0.67,143.66,143.63,8.78719413]
[1764213066873,0.67,143.66,143.57,1.82487683]
[1764213066874,8.80994492,143.63,143.57,1.82487683]
[1764213067058,3.08,143.62,143.57,1.82487683]
[1764213067252,16.308864,143.6,143.55,6.96621386]
[1764213067473,3.08,143.59,143.55,8.79109069]
[1764213067679,3.75,143.59,143.56,1.82487683]
[1764213067979,0.67,143.58,143.56,1.82487683]
[1764213068281,0.67,143.58,143.56,8.79026639]
[1764213069092,0.67,143.58,143.56,1.82487683]
[1764213069266,0.67,143.58,143.56,8.79048055]
[1764213069589,3.08,143.59,143.57,1.82487683]
[1764213069590,3.75,143.59,143.57,1.82487683]
[1764213069763,0.66,143.59,143.57,1.82487683]
[1764213070274,0.66,143.59,143.56,1.82487683]
[1764213072382,0.66,143.59,143.56,8.79036933]
[1764213072576,0.66,143.59,143.55,8.79100502]
[1764213072755,25.75803299,143.59,143.54,6.96659709]
[1764213073161,3.74,143.58,143.54,8.79147392]
[1764213073361,0.66,143.58,143.55,1.82487683]
[1764213073590,0.66,143.58,143.54,6.96659709]
[1764213073795,3.74,143.58,143.56,1.82487683]
[1764213074461,3.74,143.58,143.56,8.79043716]
[1764213074777,3.74,143.58,143.56,6.96556033]
[1764213074964,0.66,143.57,143.54,8.79117452]
[1764213075171,3.74,143.57,143.54,8.79117452]
[1764213075474,3.74,143.57,143.55,1.82487683]
[1764213076068,0.66,143.56,143.55,1.82487683]
[1764213076269,0.66,143.56,143.54,8.79117452]
[1764213076460,0.66,143.56,143.54,6.96629769]
[1764213077965,0.66,143.56,143.53,0.2]
[1764213078282,2.48487683,143.56,143.53,0.2]
[1764213078483,8.80994492,143.54,143.53,0.2]
[1764213078683,16.308864,143.53,143.52,0.2]
[1764213078892,16.968864,143.53,143.52,0.2]
[1764213081985,25.77880892,143.53,143.52,0.2]
[1764213083186,32.74599348,143.53,143.52,0.2]
[1764213083492,25.77880892,143.53,143.52,0.2]
[1764213084964,32.74599348,143.53,143.52,0.2]
[1764213085690,25.77880892,143.53,143.52,0.2]
[1764213087896,28.85880892,143.53,143.52,0.2]
[1764213093000,35.82599348,143.53,143.52,0.2]
[1764213093798,28.85880892,143.53,143.52,0.2]
[1764213094179,3.08,143.53,143.52,0.2]
[1764213094686,3.08,143.53,143.52,7.16767001]
[1764213095583,16.968864,143.55,143.52,7.16767001]
[1764213095783,3.08,143.54,143.52,7.16767001]
[1764213095983,3.74,143.54,143.52,7.16767001]
[1764213096194,3.74,143.54,143.52,0.2]
[1764213099295,0.66,143.54,143.52,0.2]
[1764213099496,3.74,143.54,143.52,0.2]
[1764213101909,8.80994492,143.57,143.53,1.82487683]
[1764213102091,3.08,143.56,143.53,1.82487683]
[1764213102291,3.08,143.56,143.53,2.03487683]
[1764213103106,3.08,143.56,143.53,1.82487683]
[1764213103394,3.74,143.56,143.53,8.79189495]
[1764213103895,0.66,143.56,143.53,8.79189495]
[1764213104097,3.74,143.56,143.53,8.79189495]
[1764213104888,0.66,143.56,143.53,8.79189495]
[1764213105204,3.74,143.56,143.53,8.79189495]
[1764213107414,0.66,143.56,143.53,8.79189495]
[1764213107622,3.74,143.56,143.53,8.79189495]
[1764213108814,10.7058127,143.56,143.52,0.2]
[1764213109022,0.66,143.55,143.52,0.2]
[1764213109522,0.66,143.55,143.52,7.16760096]
[1764213113601,0.66,143.55,143.52,10.02398557]
[1764213121612,0.66,143.55,143.52,7.16760096]
[1764213122618,3.08,143.56,143.53,3.06638461]
[1764213122817,0.66,143.56,143.53,2.85638461]
[1764213124927,16.308864,143.58,143.55,2.85638461]
[1764213125130,19.388864,143.58,143.55,2.85638461]
[1764213125321,0.66,143.57,143.54,6.96669917]
[1764213125849,8.80994492,143.54,143.52,0.2]
[1764213126028,3.08,143.53,143.52,0.2]
[1764213126338,3.74,143.53,143.52,0.2]
[1764213127808,16.308864,143.5,143.48,0.2]
[1764213128014,31.33951667,143.49,143.48,0.2]
[1764213128212,32.01951667,143.49,143.48,0.2]
[1764213129334,10.05161739,143.5,143.48,0.2]
[1764213129537,0.68,143.51,143.48,7.16960131]
[1764213130738,0.68,143.51,143.48,10.02598592]
[1764213131114,0.68,143.51,143.48,7.16960131]
[1764213132840,0.68,143.51,143.48,0.2]
[1764213133145,0.68,143.51,143.48,7.16952081]
[1764213135543,3.77,143.51,143.48,10.02590542]
[1764213135923,3.08,143.51,143.49,0.7]
[1764213136942,3.08,143.52,143.49,7.66865508]
[1764213137237,3.77,143.52,143.49,7.66865508]
[1764213138436,3.77,143.52,143.49,6.96865508]
[1764213138643,0.69,143.51,143.48,7.16960537]
[1764213138839,0.69,143.51,143.48,7.86960537]
[1764213139852,16.308864,143.54,143.49,3.55638461]
[1764213140058,3.77,143.53,143.49,3.55638461]
[1764213140543,3.77,143.53,143.5,6.96864111]
[1764213140920,3.08,143.53,143.5,6.96864111]
[1764213141132,0.69,143.52,143.5,6.96864111]
[1764213141535,16.308864,143.54,143.5,6.96864111]
[1764213141536,16.998864,143.54,143.51,0.7]
[1764213141736,20.078864,143.54,143.51,3.55638461]
[1764213142828,20.078864,143.54,143.51,10.52420618]
[1764213143241,20.078864,143.54,143.51,3.55638461]
[1764213144935,20.078864,143.54,143.5,10.52478719]
[1764213145339,16.998864,143.54,143.51,2.85638461]
[1764213145661,20.078864,143.54,143.51,3.55638461]
[1764213145857,19.388864,143.54,143.5,6.96840258]
[1764213146033,20.078864,143.54,143.51,2.85638461]
[1764213146857,20.078864,143.54,143.52,6.96767001]
[1764213147584,20.078864,143.54,143.52,9.82405462]
[1764213148056,16.308864,143.54,143.52,9.82405462]
[1764213148271,16.998864,143.54,143.52,9.82405462]
[1764213148957,16.998864,143.54,143.52,6.96767001]
[1764213149144,16.998864,143.54,143.52,9.82405462]
[1764213149345,16.998864,143.54,143.51,7.66803279]
[1764213149531,16.998864,143.54,143.51,10.5244174]
[1764213150653,16.998864,143.54,143.52,9.82381009]
[1764213151554,0.69,143.56,143.53,2.85638461]
[1764213151757,16.308864,143.55,143.53,2.85638461]
[1764213152166,16.998864,143.55,143.52,9.82381009]
[1764213152333,16.998864,143.55,143.52,10.52381009]
[1764213155465,16.998864,143.55,143.52,9.82381009]
[1764213155965,0.69,143.54,143.51,9.82440134]
[1764213156565,0.69,143.54,143.51,10.52440134]
[1764213157074,0.69,143.54,143.51,9.82440134]
[1764213157768,7.65674667,143.54,143.5,2.85638461]
[1764213158068,11.88994492,143.53,143.48,7.16954361]
[1764213158258,12.57994492,143.53,143.48,7.16954361]
[1764213158458,0.69,143.52,143.48,7.16954361]
[1764213159449,0.69,143.52,143.48,10.02592822]
[1764213159955,0.69,143.52,143.49,2.85638461]
[1764213161256,3.77,143.52,143.49,2.85638461]
[1764213161767,0.68,143.51,143.49,2.85638461]
[1764213164066,0.68,143.51,143.5,2.85638461]
[1764213164274,3.76,143.52,143.5,2.85638461]
[1764213164447,3.76,143.52,143.5,1.24]
[1764213165771,0.68,143.51,143.5,1.24]
[1764213172353,3.08,143.52,143.5,1.24]
[1764213172560,3.76,143.53,143.5,8.20855667]
[1764213172863,0.68,143.52,143.5,8.20855667]
[1764213173274,0.68,143.52,143.5,10.0371497]
[1764213173468,0.68,143.52,143.5,3.06859303]
[1764213173780,0.68,143.52,143.5,10.037218]
[1764213175487,3.08,143.53,143.5,10.037218]
[1764213175659,3.76,143.53,143.5,10.037218]
[1764213175958,3.76,143.53,143.51,1.82859303]
[1764213176974,0.68,143.53,143.51,8.79670276]
[1764213178657,0.68,143.53,143.51,1.82859303]
[1764213179078,0.68,143.53,143.5,1.24]
[1764213180285,3.76,143.53,143.5,1.24]
[1764213180457,8.80994492,143.52,143.5,1.24]
[1764213180657,25.11880892,143.51,143.5,1.24]
[1764213180876,25.79880892,143.51,143.5,1.24]
[1764213182307,0.68,143.51,143.5,1.24]
[1764213182507,3.76,143.51,143.5,1.24]
[1764213184306,19.53810044,143.51,143.5,1.24]
[1764213185211,12.56994492,143.51,143.5,1.24]
[1764213185796,19.53810044,143.51,143.5,1.24]
[1764213190416,21.36669347,143.51,143.5,1.24]